lending/lending_fUSD_20250121
["ID","MTS","AMOUNT","RATE_DAILY","PERIOD"]
[349797747,1737433861778,-500.0,0.00021915,2]
[349797748,1737433861788,-1676.19,0.00021915,2]
[349797749,1737433861799,-1240.4,0.00021915,2]
[349797750,1737433861809,-500.0,0.00021915,2]
[349797751,1737433861819,-500.0,0.00021916,2]
[349797752,1737433861828,-500.0,0.00021916,2]
[349797753,1737433861838,-533.49,0.00021916,2]
[349797754,1737433861847,-500.0,0.00021916,2]
[349797755,1737433861856,-990.66,0.00021916,2]
[349797756,1737433861866,-500.0,0.00021916,2]
[349797757,1737433861876,-500.0,0.00021916,2]
[349797758,1737433861886,-500.0,0.00021916,2]
[349797759,1737433861895,-500.0,0.00021916,2]
[349797760,1737433861905,-564.1340033,0.00021916,2]
[349797761,1737433861915,-500.0,0.00021916,2]
[349797762,1737433861924,-591.10877021,0.00021916,2]
[349797763,1737433861934,-500.0,0.00021916,2]
[349797764,1737433861943,-239.48146743,0.00021916,2]
[349797765,1737433861952,-500.0,0.00021916,2]
[349797766,1737433861961,-500.0,0.00021916,2]
[349797767,1737433861971,-500.0,0.00021916,2]
[349797768,1737433861980,-500.0,0.00021916,2]
[349797769,1737433861991,-548.82,0.00021916,2]
[349797770,1737433862004,-500.0,0.00021916,2]
[349797771,1737433862013,-831.5,0.00021916,2]
[349797772,1737433862023,-500.0,0.00021916,2]
[349797773,1737433862032,-1445.57,0.00021916,2]
[349797774,1737433862042,-1620.28,0.00021916,2]
[349797775,1737433862051,-500.0,0.00021916,2]
[349797776,1737433862061,-554.32,0.00021916,2]
[349797777,1737433862071,-796.58,0.00021916,2]
[349797778,1737433862081,-1054.81,0.00021916,2]
[349797779,1737433862090,-1002.73,0.00021916,2]
[349797780,1737433862103,-500.0,0.00021916,2]
[349797781,1737433862112,-500.0,0.00021916,2]
[349797782,1737433862121,-500.0,0.00021916,2]
[349797783,1737433862131,-816.46,0.00021916,2]
[349797784,1737433862142,-1052.49,0.00021916,2]
[349797785,1737433862152,-500.0,0.00021916,2]
[349797786,1737433862161,-1092.55,0.00021916,2]
[349797787,1737433862171,-500.0,0.00021916,2]
[349797788,1737433862181,-500.0,0.00021916,2]
[349797789,1737433862191,-500.0,0.00021916,2]
[349797790,1737433862201,-887.89,0.00021916,2]
[349797791,1737433862211,-576.02,0.00021916,2]
[349797792,1737433862220,-484.97377561,0.00021916,2]
[349797793,1737433862230,-500.0,0.00021916,2]
[349797794,1737433862240,-500.0,0.00021916,2]
[349797795,1737433862251,-500.0,0.00021916,2]
[349797796,1737433862261,-500.0,0.00021916,2]
[349797797,1737433862270,-635.19,0.00021916,2]
[349797798,1737433862279,-502.46,0.00021916,2]
[349797799,1737433862289,-940.46,0.00021916,2]
[349797800,1737433862298,-685.84,0.00021916,2]
[349797801,1737433862307,-1735.78,0.00021916,2]
[349797802,1737433862317,-500.0,0.00021917,2]
[349797803,1737433862326,-500.0,0.00021917,2]
[349797804,1737433862335,-500.0,0.00021917,2]
[349797805,1737433862345,-500.0,0.00021917,2]
[349797806,1737433862354,-500.0,0.00021917,2]
[349797807,1737433862364,-500.0,0.00021917,2]
[349797808,1737433862373,-500.0,0.00021917,2]
[349797809,1737433862383,-500.0,0.00021917,2]
[349797810,1737433862392,-300.0,0.00021917,2]
[349797811,1737433862402,-566.64,0.00021917,2]
[349797812,1737433862411,-594.43975745,0.00021917,2]
[349797813,1737433862420,-500.0,0.00021917,2]
[349797814,1737433862431,-500.0,0.00021917,2]
[349797815,1737433862440,-500.0,0.00021917,2]
[349797816,1737433862450,-1334.1,0.00021917,2]
[349797817,1737433862459,-576.6,0.00021917,2]
[349797818,1737433862468,-337.35284997,0.00021917,2]
[349797819,1737433862478,-500.0,0.00021917,2]
[349797820,1737433862487,-500.0,0.00021917,2]
[349797821,1737433862499,-595.75,0.00021917,2]
[349797822,1737433862508,-595.75,0.00021917,2]
[349797823,1737433862517,-595.75,0.00021917,2]
[349797824,1737433862527,-595.75,0.00021917,2]
[349797825,1737433862536,-595.75,0.00021917,2]
[349797826,1737433862545,-595.75,0.00021917,2]
[349797827,1737433862554,-595.75,0.00021917,2]
[349797828,1737433862563,-595.75,0.00021917,2]
[349797829,1737433862572,-651.2,0.00021917,2]
[349797830,1737433862582,-500.0,0.00021917,8]
[349797831,1737433862591,-503.79992428,0.00021917,8]
[349797832,1737433862601,-581.24,0.00021917,2]
[349797833,1737433862610,-1294.73,0.00021917,2]
[349797834,1737433862619,-500.0,0.00021917,2]
[349797835,1737433862628,-902.8,0.00021917,2]
[349797836,1737433862637,-1475.03,0.00021917,2]
[349797837,1737433862646,-879.63,0.00021917,2]
[349797838,1737433862655,-1069.94,0.00021917,2]
[349797839,1737433862664,-569.35,0.00021917,2]
[349797840,1737433862673,-676.8,0.00021917,2]
[349797841,1737433862683,-1251.4,0.00021917,2]
[349797842,1737433862692,-1689.0,0.00021917,2]
[349797843,1737433862701,-638.28,0.00021917,2]
[349797844,1737433862710,-576.63,0.00021917,2]
[349797845,1737433862719,-1637.61,0.00021917,2]
[349797846,1737433862728,-500.0,0.00021917,2]
[349797847,1737433862738,-795.98,0.00021917,2]
[349797848,1737433862749,-500.0,0.00021917,2]
[349797849,1737433862759,-1431.77,0.00021917,2]
[349797850,1737433862768,-500.0,0.00021917,2]
[349797851,1737433862778,-150.0,0.00021918,2]
[349797852,1737433862788,-150.0,0.0002192,2]
[349797853,1737433862798,-1000.0,0.0002192,14]
[349797854,1737433862808,-399.88289643,0.0002192,2]
[349797855,1737433862817,-399.88289643,0.0002192,2]
[349797856,1737433862826,-399.88289643,0.0002192,2]
[349797857,1737433862836,-399.88289643,0.0002192,2]
[349797858,1737433862845,-399.88289643,0.0002192,2]
[349797859,1737433862854,-399.88289643,0.0002192,2]
[349797860,1737433862864,-399.88289643,0.0002192,2]
[349797861,1737433862873,-399.88289643,0.0002192,2]
[349797862,1737433862883,-399.88289643,0.0002192,2]
[349797863,1737433862892,-399.88289643,0.0002192,2]
[349797864,1737433862902,-399.88289643,0.0002192,2]
[349797865,1737433862912,-399.88289643,0.0002192,2]
[349797866,1737433862921,-399.88289643,0.0002192,2]
[349797867,1737433862930,-399.88289643,0.0002192,2]
[349797868,1737433862939,-399.88289643,0.0002192,2]
[349797869,1737433862949,-399.88289643,0.0002192,2]
[349797870,1737433862958,-399.88289643,0.0002192,2]
[349797871,1737433862967,-399.88289643,0.0002192,2]
[349797872,1737433862976,-399.88289643,0.0002192,2]
[349797873,1737433862985,-399.88,0.0002192,2]
[349797874,1737433862994,-933.06009168,0.0002192,2]
[349797875,1737433863006,-933.06009168,0.0002192,2]
[349797876,1737433863016,-933.06009168,0.0002192,2]
[349797877,1737433863026,-933.06009168,0.0002192,2]
[349797878,1737433863036,-933.06009168,0.0002192,2]
[349797879,1737433863046,-933.06009168,0.0002192,2]
[349797880,1737433863056,-933.06009168,0.0002192,2]
[349797881,1737433863066,-933.06009168,0.0002192,2]
[349797882,1737433863082,-933.06009168,0.0002192,2]
[349797883,1737433863092,-933.06009168,0.0002192,2]
[349797884,1737433863102,-933.06009168,0.0002192,2]
[349797885,1737433863112,-933.06009168,0.0002192,2]
[349797886,1737433863123,-933.06009168,0.0002192,2]
[349797887,1737433863133,-933.06009168,0.0002192,2]
[349797888,1737433863144,-933.06009168,0.0002192,2]
[349797889,1737433863155,-933.06009168,0.0002192,2]
[349797890,1737433863166,-933.06009168,0.0002192,2]
[349797891,1737433863178,-933.06009168,0.0002192,2]
[349797892,1737433863188,-933.06009168,0.0002192,2]
[349797893,1737433863199,-933.06,0.0002192,2]
[349797894,1737433863210,-1060.16570752,0.0002192,2]
[349797895,1737433863220,-1060.16570752,0.0002192,2]
[349797896,1737433863231,-1060.16570752,0.0002192,2]
[349797897,1737433863241,-1060.16570752,0.0002192,2]
[349797898,1737433863255,-1060.16570752,0.0002192,2]
[349797899,1737433863266,-1060.16570752,0.0002192,2]
[349797900,1737433863276,-1060.16570752,0.0002192,2]
[349797901,1737433863287,-1060.16570752,0.0002192,2]
[349797902,1737433863353,-1060.16570752,0.0002192,2]
[349797903,1737433863364,-1060.16570752,0.0002192,2]
[349797904,1737433863373,-1060.16570752,0.0002192,2]
[349797905,1737433863383,-1060.16570752,0.0002192,2]
[349797906,1737433863393,-1060.16570752,0.0002192,2]
[349797907,1737433863404,-1060.16570752,0.0002192,2]
[349797908,1737433863414,-1060.16570752,0.0002192,2]
[349797909,1737433863425,-1060.16570752,0.0002192,2]
[349797910,1737433863435,-1060.16570752,0.0002192,2]
[349797911,1737433863444,-1060.16570752,0.0002192,2]
[349797912,1737433863454,-1060.16570752,0.0002192,2]
[349797913,1737433863464,-1060.16,0.0002192,2]
[349797914,1737433863473,-2473.71998421,0.0002192,2]
[349797915,1737433863483,-2473.71998421,0.0002192,2]
[349797916,1737433863492,-2473.71998421,0.0002192,2]
[349797917,1737433863505,-2473.71998421,0.0002192,2]
[349797918,1737433863515,-2473.71998421,0.0002192,2]
[349797919,1737433863524,-2473.71998421,0.0002192,2]
[349797920,1737433863534,-2473.71998421,0.0002192,2]
[349797921,1737433863544,-2473.71998421,0.0002192,2]
[349797922,1737433863554,-2473.71998421,0.0002192,2]
[349797923,1737433863564,-2473.71998421,0.0002192,2]
[349797924,1737433863574,-2473.71998421,0.0002192,2]
[349797925,1737433863583,-2473.71998421,0.0002192,2]
[349797926,1737433863593,-2473.71998421,0.0002192,2]
[349797927,1737433863604,-2473.71998421,0.0002192,2]
[349797928,1737433863615,-2473.71998421,0.0002192,2]
[349797929,1737433863624,-2473.71998421,0.0002192,2]
[349797930,1737433863634,-2473.71998421,0.0002192,2]
[349797931,1737433863644,-2473.71998421,0.0002192,2]
[349797932,1737433863654,-2473.71998421,0.0002192,2]
[349797933,1737433863663,-2473.71,0.0002192,2]
[349797934,1737433863673,-537.75378843,0.0002192,2]
[349797935,1737433863683,-537.75378843,0.0002192,2]
[349797936,1737433863693,-537.75378843,0.0002192,2]
[349797937,1737433863703,-537.75378843,0.0002192,2]
[349797938,1737433863713,-537.75378843,0.0002192,2]
[349797939,1737433863722,-537.75378843,0.0002192,2]
[349797940,1737433863733,-537.75378843,0.0002192,2]
[349797941,1737433863743,-537.75378843,0.0002192,2]
[349797942,1737433863757,-537.75378843,0.0002192,2]
[349797943,1737433863767,-537.75378843,0.0002192,2]
[349797944,1737433863779,-537.75378843,0.0002192,2]
[349797945,1737433863789,-537.75378843,0.0002192,2]
[349797946,1737433863799,-537.75378843,0.0002192,2]
[349797947,1737433863810,-537.75378843,0.0002192,2]
[349797948,1737433863820,-537.75378843,0.0002192,2]
[349797949,1737433863831,-537.75378843,0.0002192,2]
[349797950,1737433863841,-537.75378843,0.0002192,2]
[349797951,1737433863851,-537.75378843,0.0002192,2]
[349797952,1737433863860,-537.75378843,0.0002192,2]
[349797953,1737433863871,-537.75,0.0002192,2]
[349797954,1737433863881,-1254.75883966,0.0002192,2]
[349797955,1737433863890,-1254.75883966,0.0002192,2]
[349797956,1737433863900,-1254.75883966,0.0002192,2]
[349797957,1737433863909,-1254.75883966,0.0002192,2]
[349797958,1737433863919,-1254.75883966,0.0002192,2]
[349797959,1737433863929,-1254.75883966,0.0002192,2]
[349797960,1737433863939,-1254.75883966,0.0002192,2]
[349797961,1737433863950,-1254.75883966,0.0002192,2]
[349797962,1737433863959,-1254.75883966,0.0002192,2]
[349797963,1737433863970,-1254.75883966,0.0002192,2]
[349797964,1737433863981,-1254.75883966,0.0002192,2]
[349797965,1737433863992,-1254.75883966,0.0002192,2]
[349797966,1737433864008,-1254.75883966,0.0002192,2]
[349797967,1737433864020,-1254.75883966,0.0002192,2]
[349797968,1737433864031,-1254.75883966,0.0002192,2]
[349797969,1737433864041,-1254.75883966,0.0002192,2]
[349797970,1737433864052,-1254.75883966,0.0002192,2]
[349797971,1737433864063,-1254.75883966,0.0002192,2]
[349797972,1737433864077,-1254.75883966,0.0002192,2]
[349797973,1737433864087,-1254.75,0.0002192,2]
[349797974,1737433864099,-150.0,0.00021924,2]
[349797975,1737433864117,-150.0,0.00021925,2]
[349797976,1737433864132,-150.0,0.00021926,2]
[349797977,1737433864143,-150.0,0.00021927,2]
[349797978,1737433864154,-150.0,0.00021928,2]
[349797979,1737433864165,-150.0,0.00021929,2]
[349797980,1737433864175,-1000.0,0.0002193,2]
[349797981,1737433864187,-178.86203412,0.00021932,2]
[349797982,1737433864198,-39538.68693111,0.00021934,2]
[349797983,1737433864208,-150.0,0.00021934,2]
[349797984,1737433864219,-150.0,0.00021936,2]
[349797985,1737433864229,-150.0,0.00021938,2]
[349797986,1737433864239,-150.0,0.00021939,2]
[349797987,1737433864255,-1000.0,0.0002194,14]
[349797988,1737433864266,-150.0,0.00021941,2]
[349797989,1737433864276,-150.0,0.00021945,2]
[349797990,1737433864287,-1000.0,0.0002195,14]
[349797991,1737433864297,-150.0,0.00021951,2]
[349797992,1737433864307,-150.0,0.00021952,2]
[349797993,1737433864318,-1000.0,0.00021953,2]
[349797994,1737433864329,-150.0,0.00021954,2]
[349797995,1737433864339,-150.0,0.00021955,2]
[349797996,1737433864349,-1000.0,0.00021956,2]
[349797997,1737433864359,-150.0,0.00021957,2]
[349797998,1737433864369,-150.0,0.00021958,2]
[349797999,1737433864387,-150.0,0.00021958,2]
[349798000,1737433864403,-1000.0,0.00021958,2]
[349798001,1737433864414,-4917.84,0.00021959,7]
[349798002,1737433864425,-4917.84,0.00021959,7]
[349798003,1737433864436,-150.0,0.0002196,2]
[349798004,1737433864446,-150.0,0.00021963,2]
[349798005,1737433864455,-150.0,0.00021964,2]
[349798006,1737433864466,-150.0,0.00021965,2]
[349798007,1737433864476,-1000.0,0.00021967,2]
[349798008,1737433864485,-1000.0,0.00021968,2]
[349798009,1737433864494,-150.0,0.00021969,2]
[349798010,1737433864508,-400.0,0.0002197,2]
[349798011,1737433864519,-478.27153247,0.0002197,2]
[349798012,1737433864530,-150.0,0.00021971,2]
[349798013,1737433864539,-150.0,0.00021973,4]
[349798014,1737433864549,-150.0,0.00021973,4]
[349798015,1737433864560,-150.0,0.00021973,4]
[349798016,1737433864569,-150.60025099,0.00021973,4]
[349798017,1737433864580,-1000.0,0.00021974,2]
[349798018,1737433864590,-150.0,0.00021975,2]
[349798019,1737433864599,-150.0,0.00021975,2]
[349798020,1737433864610,-500.0,0.00021978,2]
[349798021,1737433864620,-500.0,0.00021978,2]
[349798022,1737433864631,-500.0,0.00021978,2]
[349798023,1737433864641,-500.0,0.00021978,2]
[349798024,1737433864651,-500.0,0.00021978,2]
[349798025,1737433864661,-449.4834,0.00021978,2]
[349798026,1737433864672,-1000.0,0.00021978,2]
[349798027,1737433864682,-1000.0,0.00021978,2]
[349798028,1737433864693,-586.56,0.00021978,2]
[349798029,1737433864704,-1000.0,0.00021979,2]
[349798030,1737433864714,-322887.60160975,0.0002198,2]
[349798031,1737433864724,-150.0,0.00021982,2]
[349798032,1737433864735,-1000.0,0.00021982,2]
[349798033,1737433864746,-465.84456322,0.00021985,4]
[349798034,1737433864763,-150.0,0.00021986,2]
[349798035,1737433864773,-150.0,0.0002199,2]
[349798036,1737433864786,-106689.68408725,0.0002199,14]
[349798037,1737433864796,-200.0,0.0002199,8]
[349798038,1737433864807,-252.49252953,0.00021992,2]
[349798039,1737433864817,-151.27131971,0.00021993,2]
[349798040,1737433864827,-150.0,0.00021995,2]
[349798041,1737433864839,-1120.95,0.00021995,2]
[349798042,1737433864849,-170306.39320844,0.00021996,2]
[349798043,1737433864860,-1123663.35661224,0.00021997,2]
[349798044,1737433864870,-3468.0420323,0.00021997,2]
[349798045,1737433864880,-3571.783506,0.00021997,2]
[349798046,1737433864890,-812.190402,0.00021997,2]
[349798047,1737433864900,-1049.2447518,0.00021997,2]
[349798048,1737433864910,-2796.5621571,0.00021997,2]
[349798049,1737433864920,-395289.22819909,0.00021998,2]
[349798050,1737433864931,-332.5799057,0.00021999,2]
[349798051,1737433864941,-666.0,0.00021999,2]
[349798052,1737433864950,-2000.0,0.00021999,2]
[349798053,1737433864959,-2000.0,0.00021999,2]
[349798054,1737433864970,-2000.0,0.00021999,2]
[349798055,1737433864981,-2000.0,0.00021999,2]
[349798056,1737433864992,-2000.0,0.00021999,2]
[349798057,1737433865009,-2000.0,0.00021999,2]
[349798058,1737433865020,-500.0,0.00021999,2]
[349798059,1737433865031,-500.0,0.00021999,2]
[349798060,1737433865042,-500.0,0.00021999,2]
[349798061,1737433865053,-500.0,0.00021999,2]
[349798062,1737433865064,-500.0,0.00021999,2]
[349798063,1737433865077,-500.0,0.00021999,2]
[349798064,1737433865087,-521.21416324,0.00021999,2]
[349798065,1737433865097,-673.59653589,0.00021999,2]
[349798066,1737433865107,-500.0,0.00021999,2]
[349798067,1737433865118,-666.0,0.00021999,2]
[349798068,1737433865128,-113517.45058512,0.00021999,2]
[349798069,1737433865138,-1397.1088611,0.00021999,2]
[349798070,1737433865150,-220.09225564,0.00021999,2]
[349798071,1737433865160,-1693.51306781,0.00022,2]
[349798072,1737433865174,-9285893.34062959,0.00022,2]
[349798073,1737433865194,-942757.17096392,0.00022,2]
[349798074,1737433865566,-216.9,0.00018299,2]
[349798075,1737433865581,-500.0,0.00019723,2]
[349798076,1737433865602,-92.64283613,0.00019724,2]
[349798077,1737433865635,-500.0,0.00019178,2]
[349798078,1737433865646,-3164.60716387,0.00019724,2]
[349798079,1737433865657,-500.0,0.00019997,2]
[349798080,1737433865667,-3257.25,0.00019998,2]
[349798081,1737433865677,-500.0,0.00020271,2]
[349798082,1737433865687,-3257.25,0.00020272,2]
[349798083,1737433865698,-500.0,0.00020545,2]
[349798084,1737433865708,-3257.25,0.00020546,2]
[349798085,1737433865719,-216.9,0.00020587,2]
[349798086,1737433865729,-500.0,0.00020819,2]
[349798087,1737433865740,-3257.25,0.0002082,2]
[349798088,1737433865750,-500.0,0.00021093,2]
[349798089,1737433865766,-3257.25,0.00021094,2]
[349798090,1737433865776,-500.0,0.00021367,2]
[349798091,1737433865786,-3257.25,0.00021368,2]
[349798092,1737433865796,-7039.31221242,0.00021891,2]
[349798093,1737433865806,-150.0,0.00021995,2]
[349798094,1737433865817,-65001.68062371,0.00022,2]
[349798095,1737433865966,-72.29971207,0.00022,2]
[349798096,1737433865980,-3674.98752841,0.00022,2]
[349798097,1737433865993,-528.1306033,0.00022,2]
[349798098,1737433866012,-1795.33216696,0.00022,2]
[349798099,1737433866409,-78.32927478,0.00019178,2]
[349798100,1737433866444,-421.67072522,0.00019178,2]
[349798101,1737433866454,-500.0,0.00019452,2]
[349798102,1737433866463,-107.32927478,0.00019452,2]
[349798103,1737433867100,-500.0,0.00019178,2]
[349798104,1737433867112,-753.65,0.00019178,2]
[349798105,1737433867126,-392.67072522,0.00019452,2]
[349798106,1737433867135,-116.9644481,0.00019452,2]
[349798107,1737433867173,-63.35812543,0.00019452,2]
[349798108,1737433867205,-319.67742647,0.00019452,2]
[349798109,1737433867214,-753.65,0.00019452,2]
[349798110,1737433867224,-454.87254353,0.00019722,2]
[349798111,1737433912111,20000.0,0.00024,90]
[349798112,1737433926383,10000.0,0.00024,90]
[349798113,1737433954176,10000.0,0.00024,90]
[349798114,1737433975574,10000.0,0.00024,90]
[349798115,1737433988911,10000.0,0.00024,90]
[349798116,1737434024755,13400.79,0.00024,90]
[349798118,1737434066283,10000.0,0.00024,90]
[349798119,1737434082706,10000.0,0.00024,90]
[349798122,1737434263112,2391.11150291,0.00024,90]
[349798123,1737434381164,21823.76414183,0.00024,90]
[349798126,1737434431774,88398.21585817,0.00024,120]
[349798141,1737435031662,-550.07641215,0.0001726,2]
[349798142,1737435031674,-370.32358785,0.0001726,2]
[349798143,1737435031683,-645.52767246,0.00018358,2]
[349798144,1737435031693,-803.01,0.00018458,2]
[349798145,1737435031702,-250.0,0.00018569,2]
[349798146,1737435031711,-1000.0,0.0001857,2]
[349798147,1737435031720,-333.59,0.00018705,2]
[349798148,1737435031729,-3746.42,0.00018733,2]
[349798149,1737435031738,-189.12,0.00018733,2]
[349798150,1737435031747,-250.0,0.00018852,2]
[349798151,1737435031756,-150.0,0.00018986,2]
[349798152,1737435031765,-713.87,0.00019013,30]
[349798153,1737435031775,-250.0,0.00019063,2]
[349798154,1737435031784,-175.36,0.00019123,2]
[349798155,1737435031793,-675.026,0.00019177,2]
[349798156,1737435031803,-150.0,0.00019177,2]
[349798157,1737435031812,-500.0,0.00019178,2]
[349798158,1737435031821,-500.0,0.00019178,2]
[349798159,1737435031830,-1664.66,0.00019178,2]
[349798160,1737435031839,-500.0,0.00019178,2]
[349798161,1737435031848,-500.0,0.00019178,2]
[349798162,1737435031857,-500.0,0.00019178,2]
[349798163,1737435031866,-500.0,0.00019178,2]
[349798164,1737435031875,-500.0,0.00019178,2]
[349798165,1737435031884,-500.0,0.00019178,2]
[349798166,1737435031894,-500.0,0.00019178,2]
[349798167,1737435031904,-500.0,0.00019178,2]
[349798168,1737435031913,-500.0,0.00019178,2]
[349798169,1737435031923,-500.0,0.00019178,2]
[349798170,1737435031932,-500.0,0.00019178,2]
[349798171,1737435031942,-500.0,0.00019178,2]
[349798172,1737435031951,-500.0,0.00019178,2]
[349798173,1737435031960,-500.0,0.00019178,2]
[349798174,1737435031969,-500.0,0.00019178,2]
[349798175,1737435031978,-500.0,0.00019178,2]
[349798176,1737435031988,-422.29471784,0.00019178,2]
[349798177,1737435031997,-500.0,0.00019178,2]
[349798178,1737435032005,-500.0,0.00019178,2]
[349798179,1737435032015,-500.0,0.00019178,2]
[349798180,1737435032026,-500.0,0.00019178,2]
[349798181,1737435032035,-500.0,0.00019178,2]
[349798182,1737435032044,-500.0,0.00019178,2]
[349798183,1737435032053,-500.0,0.00019178,2]
[349798184,1737435032062,-500.0,0.00019178,2]
[349798185,1737435032071,-500.0,0.00019178,2]
[349798186,1737435032081,-508.22374713,0.00019178,2]
[349798187,1737435032090,-500.0,0.00019178,2]
[349798188,1737435032099,-594.92,0.00019178,2]
[349798189,1737435032108,-500.0,0.00019178,2]
[349798190,1737435032117,-367.97180898,0.00019178,2]
[349798191,1737435032126,-500.0,0.00019178,2]
[349798192,1737435032136,-621.40064972,0.00019178,2]
[349798193,1737435032145,-500.0,0.00019178,2]
[349798194,1737435032154,-500.0,0.00019178,2]
[349798195,1737435032166,-500.0,0.00019178,2]
[349798196,1737435032175,-500.0,0.00019178,2]
[349798197,1737435032185,-500.0,0.00019178,2]
[349798198,1737435032194,-500.0,0.00019178,2]
[349798199,1737435032204,-500.0,0.00019178,2]
[349798200,1737435032213,-500.0,0.00019178,2]
[349798201,1737435032222,-500.0,0.00019178,2]
[349798202,1737435032231,-500.0,0.00019178,2]
[349798203,1737435032240,-342.12751532,0.00019178,2]
[349798204,1737435032249,-500.0,0.00019178,2]
[349798205,1737435032259,-500.0,0.00019178,2]
[349798206,1737435032268,-500.0,0.00019178,2]
[349798207,1737435032277,-500.0,0.00019178,2]
[349798208,1737435032286,-500.0,0.00019178,2]
[349798209,1737435032296,-500.0,0.00019178,2]
[349798210,1737435032305,-500.0,0.00019178,2]
[349798211,1737435032314,-500.0,0.00019178,2]
[349798212,1737435032323,-500.0,0.00019178,2]
[349798213,1737435032332,-500.0,0.00019178,2]
[349798214,1737435032341,-500.0,0.00019178,2]
[349798215,1737435032351,-500.0,0.00019178,2]
[349798216,1737435032360,-500.0,0.00019178,2]
[349798217,1737435032370,-500.0,0.00019178,2]
[349798218,1737435032379,-500.0,0.00019178,2]
[349798219,1737435032388,-500.0,0.00019178,2]
[349798220,1737435032397,-580.56,0.00019178,2]
[349798221,1737435032406,-500.0,0.00019178,2]
[349798222,1737435032415,-500.0,0.00019178,2]
[349798223,1737435032424,-500.0,0.00019178,2]
[349798224,1737435032433,-500.0,0.00019178,2]
[349798225,1737435032444,-500.0,0.00019178,2]
[349798226,1737435032453,-500.0,0.00019178,2]
[349798227,1737435032462,-500.0,0.00019178,2]
[349798228,1737435032471,-599.69840757,0.00019178,2]
[349798229,1737435032481,-500.0,0.00019178,2]
[349798230,1737435032490,-500.0,0.00019178,2]
[349798231,1737435032499,-513.07244045,0.00019178,2]
[349798232,1737435032508,-500.0,0.00019178,2]
[349798233,1737435032519,-500.0,0.00019178,2]
[349798234,1737435032528,-500.0,0.00019178,2]
[349798235,1737435032537,-500.0,0.00019178,2]
[349798236,1737435032546,-500.0,0.00019178,2]
[349798237,1737435032555,-500.0,0.00019178,2]
[349798238,1737435032564,-500.0,0.00019178,2]
[349798239,1737435032573,-483.19467329,0.00019178,2]
[349798240,1737435032583,-500.0,0.00019178,2]
[349798241,1737435032592,-500.0,0.00019178,2]
[349798242,1737435032602,-500.0,0.00019178,2]
[349798243,1737435032611,-500.0,0.00019178,2]
[349798244,1737435032619,-500.0,0.00019178,2]
[349798245,1737435032629,-500.0,0.00019178,2]
[349798246,1737435032638,-500.0,0.00019178,2]
[349798247,1737435032647,-500.0,0.00019178,2]
[349798248,1737435032656,-500.0,0.00019178,2]
[349798249,1737435032666,-500.0,0.00019178,2]
[349798250,1737435032675,-500.0,0.00019178,2]
[349798251,1737435032684,-500.0,0.00019178,2]
[349798252,1737435032693,-500.0,0.00019178,2]
[349798253,1737435032703,-500.0,0.00019178,2]
[349798254,1737435032713,-500.0,0.00019178,2]
[349798255,1737435032722,-500.0,0.00019178,2]
[349798256,1737435032730,-500.0,0.00019178,2]
[349798257,1737435032740,-500.0,0.00019178,2]
[349798258,1737435032751,-510.47400059,0.00019178,2]
[349798259,1737435032761,-500.0,0.00019178,2]
[349798260,1737435032771,-513.29686804,0.00019178,2]
[349798261,1737435032780,-500.0,0.00019178,2]
[349798262,1737435032789,-500.0,0.00019178,2]
[349798263,1737435032799,-500.0,0.00019178,2]
[349798264,1737435032808,-500.0,0.00019178,2]
[349798265,1737435032817,-500.0,0.00019178,2]